bitfinex-derivatives/quotes_BTCF0:USTF0_20250718
["timestamp","ask_amount","ask_price","bid_price","bid_amount"]
[1752821075257,1.17859116,120360.0,120350.0,0.5603555]
[1752821077763,1.18553116,120360.0,120350.0,0.5603555]
[1752821078162,0.60093116,120360.0,120350.0,0.5603555]
[1752821078364,1.18497116,120360.0,120350.0,0.5603555]
[1752821079359,1.54577116,120360.0,120350.0,0.5603555]
[1752821079565,0.91159765,120360.0,120350.0,0.5603555]
[1752821079863,1.18449116,120360.0,120350.0,0.5603555]
[1752821082559,1.17755116,120360.0,120350.0,0.5603555]
[1752821085168,1.17755116,120360.0,120350.0,0.53046966]
[1752821085968,0.60093116,120360.0,120350.0,0.53046966]
[1752821086264,1.18385116,120360.0,120350.0,0.53046966]
[1752821086460,1.00818116,120360.0,120350.0,0.53046966]
[1752821086659,1.59070116,120360.0,120350.0,0.53046966]
[1752821087061,1.59070116,120360.0,120350.0,0.56034073]
[1752821087366,1.59070116,120360.0,120350.0,0.53046966]
[1752821092563,1.00818116,120360.0,120350.0,0.53046966]
[1752821092765,1.59062116,120360.0,120350.0,0.53046966]
[1752821093569,1.22982116,120360.0,120350.0,0.53046966]
[1752821093869,1.59062116,120360.0,120350.0,0.53046966]
[1752821095967,1.22982116,120360.0,120350.0,0.53046966]
[1752821097972,0.95644765,120360.0,120350.0,0.53046966]
[1752821098169,1.22982116,120360.0,120350.0,0.53046966]
[1752821100667,1.22978116,120360.0,120350.0,0.53046966]
[1752821101372,1.22978116,120360.0,120350.0,0.4856409]
[1752821101872,0.95640765,120360.0,120350.0,0.4856409]
[1752821102068,0.64738116,120360.0,120350.0,0.4856409]
[1752821102270,1.18333116,120360.0,120350.0,0.4856409]
[1752821102775,1.22978116,120360.0,120350.0,0.53050378]
[1752821103573,0.64738116,120360.0,120350.0,0.53050378]
[1752821103772,1.22978116,120360.0,120350.0,0.53050378]
[1752821106976,1.26398511,120360.0,120350.0,0.53050378]
[1752821108968,0.68158511,120360.0,120350.0,0.53050378]
[1752821109173,1.57152257,120360.0,120350.0,0.53050378]
[1752821109370,1.57586257,120360.0,120350.0,0.53050378]
[1752821112376,0.96070765,120360.0,120350.0,0.53050378]
[1752821112671,1.57586257,120360.0,120350.0,0.53050378]
[1752821112877,1.57586257,120360.0,120350.0,0.4856409]
[1752821114281,0.99350257,120360.0,120350.0,0.4856409]
[1752821114577,1.57582257,120360.0,120350.0,0.4856409]
[1752821114778,1.57582257,120360.0,120350.0,0.3196]
[1752821115578,1.93662257,120360.0,120350.0,0.12552]
[1752821115777,1.35430257,120360.0,120350.0,0.04785308]
[1752821115982,1.93658257,120360.0,120350.0,0.04785308]
[1752821116375,1.93658257,120360.0,120350.0,0.0777541]
[1752821117482,1.93658257,120360.0,120350.0,0.03290102]
[1752821117882,1.93658257,120360.0,120350.0,0.05532598]
[1752821119482,1.93658257,120360.0,120350.0,0.05531746]
[1752821120384,1.93658257,120360.0,120350.0,0.00452746]
[1752821120575,1.35430257,120360.0,120350.0,0.00452746]
[1752821120780,1.93658257,120360.0,120350.0,0.00452746]
[1752821120984,1.93654257,120360.0,120350.0,0.00452746]
[1752821122487,1.35430257,120360.0,120350.0,0.00452746]
[1752821122786,1.93658257,120360.0,120350.0,0.00452746]
[1752821122989,1.93654257,120360.0,120350.0,0.00452746]
[1752821123285,1.35430257,120360.0,120350.0,0.451031]
[1752821123489,1.35430257,120360.0,120350.0,0.473741]
[1752821123490,1.21737511,120360.0,120350.0,0.473741]
[1752821123689,0.63513511,120360.0,120350.0,0.51859408]
[1752821123890,1.21737511,120360.0,120350.0,0.82617154]
[1752821124489,1.21737511,120360.0,120350.0,0.51859408]
[1752821125088,1.18318802,120360.0,120350.0,0.51959408]
[1752821125486,1.18318802,120360.0,120350.0,0.52259408]
[1752821125688,0.60094802,120360.0,120350.0,0.52259408]
[1752821126186,1.18318802,120360.0,120350.0,0.52259408]
[1752821126388,0.60094802,120360.0,120350.0,0.52259408]
[1752821126585,1.18318802,120360.0,120350.0,0.52259408]
[1752821127992,0.90979765,120360.0,120350.0,0.52259408]
[1752821128890,0.90285765,120360.0,120350.0,0.52259408]
[1752821129793,0.32061765,120360.0,120350.0,0.52259408]
[1752821129994,0.90281765,120360.0,120350.0,0.52259408]
[1752821130390,0.29029765,120360.0,120350.0,0.52259408]
[1752821138702,0.29029775,120360.0,120350.0,0.79598445]
[1752821138898,0.29029775,120360.0,120350.0,1.37806445]
[1752821139102,0.29029775,120360.0,120350.0,1.10467408]
[1752821141206,0.29029775,120360.0,120350.0,1.059821]
[1752821141401,0.29029775,120360.0,120350.0,1.10461309]
[1752821141705,0.29029775,120360.0,120350.0,1.059821]
[1752821143002,0.29029775,120360.0,120350.0,1.10461131]
[1752821143207,0.20721466,120360.0,120350.0,0.93844513]
[1752821143408,0.20721466,120360.0,120350.0,1.08723143]
[1752821143600,0.6983342,120370.0,120360.0,0.2858972]
[1752821143806,1.01937457,120370.0,120360.0,0.3086072]
[1752821144110,0.90634065,120370.0,120360.0,0.14258]
[1752821144310,0.90634065,120370.0,120360.0,0.03409]
[1752821144509,1.17973102,120370.0,120360.0,0.03409]
[1752821144909,1.76545102,120370.0,120360.0,0.03409]
[1752821145312,1.76545102,120370.0,120360.0,0.19921]
[1752821145608,1.76545102,120370.0,120360.0,0.14018]
[1752821145805,1.76545102,120370.0,120360.0,0.11747]
[1752821146002,1.76545102,120370.0,120360.0,0.11847]
[1752821146612,1.76545102,120370.0,120360.0,0.14118]
[1752821146811,1.76545102,120370.0,120360.0,0.18883]
[1752821148313,1.49206065,120370.0,120360.0,0.18883]
[1752821148515,1.45651065,120370.0,120360.0,0.4747272]
[1752821148814,1.73050102,120370.0,120360.0,0.4747272]
[1752821149112,1.76605102,120370.0,120360.0,0.4747272]
[1752821150607,1.45711065,120370.0,120360.0,0.50459682]
[1752821150809,1.73050102,120370.0,120360.0,0.54938713]
[1752821152813,1.73050102,120370.0,120360.0,0.51951751]
[1752821153615,1.76605102,120370.0,120360.0,0.51951751]
[1752821157618,1.76517102,120370.0,120360.0,0.51951751]
[1752821158019,1.49178065,120370.0,120360.0,0.51951751]
[1752821158221,1.76517102,120370.0,120360.0,0.51951751]
[1752821158917,1.49178065,120370.0,120360.0,0.51951751]
[1752821159220,1.76501102,120370.0,120360.0,0.51951751]
[1752821162323,1.17973102,120370.0,120360.0,0.51951751]
[1752821162518,0.42083515,120370.0,120360.0,0.51951751]
[1752821162724,0.32244095,120370.0,120360.0,0.88031751]
[1752821163024,1.21508848,120370.0,120360.0,1.18780504]
[1752821163324,1.21500848,120370.0,120360.0,1.14301473]
[1752821163523,0.62992848,120370.0,120360.0,1.14301473]
[1752821163718,1.23087043,120380.0,120370.0,0.2944435]
[1752821163924,1.23087043,120380.0,120370.0,0.86385308]
[1752821164120,1.35618417,120380.0,120370.0,0.86385308]
[1752821164318,0.77126417,120380.0,120370.0,0.86385308]
[1752821164523,1.35614417,120380.0,120370.0,0.52646873]
[1752821164821,1.35714417,120380.0,120370.0,0.83395626]
[1752821165021,0.96665484,120380.0,120370.0,0.52646873]
[1752821165419,0.80064374,120380.0,120370.0,0.52646873]
[1752821165818,0.80164374,120380.0,120370.0,0.52646873]
[1752821166219,0.80164374,120380.0,120370.0,1.11106873]
[1752821166220,0.38276364,120380.0,120370.0,1.11106873]
[1752821166918,0.38176364,120380.0,120370.0,1.11406873]
[1752821167220,0.38076364,120380.0,120370.0,1.11598873]
[1752821167923,0.38076364,120380.0,120370.0,0.53146873]
[1752821168228,0.38076364,120380.0,120370.0,1.11570873]
[1752821168420,0.38076364,120380.0,120370.0,0.53146873]
[1752821168621,0.38076364,120380.0,120370.0,1.11562873]
[1752821168816,0.38076364,120380.0,120370.0,0.53146873]
[1752821169025,0.29769304,120380.0,120370.0,1.11594873]
[1752821169225,0.21462244,120380.0,120370.0,0.53146873]
[1752821169418,0.21462244,120380.0,120370.0,1.03275042]
[1752821169419,0.24718244,120380.0,120370.0,1.03275042]
[1752821169625,0.24718244,120380.0,120370.0,1.06605042]
[1752821169626,0.16411184,120380.0,120370.0,1.06605042]
[1752821169823,0.15779693,120380.0,120370.0,0.48157042]
[1752821170029,0.24072623,120380.0,120370.0,1.06621042]
[1752821170325,0.24072623,120380.0,120370.0,0.91212861]
[1752821170515,0.15765563,120380.0,120370.0,0.91212861]
[1752821170719,0.32222032,120380.0,120370.0,0.91212861]
[1752821170919,0.23914972,120380.0,120370.0,0.97757495]
[1752821171120,0.40514962,120380.0,120370.0,0.62999963]
[1752821171320,0.36973925,120380.0,120370.0,0.82931313]
[1752821171521,0.41665519,120380.0,120370.0,0.82931313]
[1752821171719,0.41048888,120380.0,120370.0,0.82931313]
[1752821171927,0.32741851,120380.0,120370.0,0.66317239]
[1752821172222,0.32176816,120380.0,120370.0,0.74438202]
[1752821172416,0.23869779,120380.0,120370.0,0.76728202]
[1752821172618,0.32162732,120380.0,120370.0,0.76728202]
[1752821172822,0.32162732,120380.0,120370.0,0.51807091]
[1752821173026,0.23855695,120380.0,120370.0,0.58412181]
[1752821173226,0.15548658,120380.0,120370.0,0.58412181]
[1752821173426,0.07241621,120380.0,120370.0,0.58412181]
[1752821173626,0.19627595,120380.0,120370.0,0.8052]
[1752821173824,0.11320558,120380.0,120370.0,1.0663435]
[1752821174025,0.19613511,120380.0,120370.0,1.0663435]
[1752821174225,0.11306474,120380.0,120370.0,1.0663435]
[1752821174425,0.11306474,120380.0,120370.0,0.81713239]
[1752821174625,0.55411805,120380.0,120370.0,0.85043239]
[1752821174926,0.60705321,120380.0,120370.0,0.85043239]
[1752821175126,0.60705321,120380.0,120370.0,0.2944435]
[1752821175127,0.79727848,120380.0,120370.0,0.2944435]
[1752821175327,0.71420811,120380.0,120370.0,0.2944435]
[1752821175530,0.79566384,120380.0,120370.0,0.21124589]
[1752821175726,0.71259347,120380.0,120370.0,0.41232589]
[1752821175930,0.7207831,120380.0,120370.0,0.41232589]
[1752821176230,0.7207831,120380.0,120370.0,0.24631239]
[1752821176432,0.7207831,120380.0,120370.0,0.41232609]
[1752821176632,0.7207831,120380.0,120370.0,0.48137609]
[1752821177430,1.3109031,120380.0,120370.0,0.48137609]
[1752821177832,1.3107031,120380.0,120370.0,0.48137609]
[1752821178133,0.7207831,120380.0,120370.0,0.48137609]
[1752821178333,1.3115831,120380.0,120370.0,0.48137609]
[1752821178735,1.3115831,120380.0,120370.0,0.31536239]
[1752821179735,1.3115831,120380.0,120370.0,0.48137619]
[1752821180135,1.03928746,120380.0,120370.0,0.48137619]
[1752821180335,1.3125831,120380.0,120370.0,0.48137619]
[1752821180937,1.3125831,120380.0,120370.0,0.31536239]
[1752821181136,1.3125831,120380.0,120370.0,0.48137609]
[1752821181634,1.3120231,120380.0,120370.0,0.48137609]
[1752821183836,1.3120231,120380.0,120370.0,0.31536239]
[1752821184137,1.3120231,120380.0,120370.0,0.48137629]
[1752821187042,1.34622628,120380.0,120370.0,0.48137629]
[1752821187539,0.75598628,120380.0,120370.0,0.11813]
[1752821187739,1.70586628,120380.0,120370.0,0.11813]
[1752821189239,1.70586628,120380.0,120370.0,0.2841438]
[1752821189440,1.70542628,120380.0,120370.0,0.2841438]
[1752821189938,1.39792746,120380.0,120370.0,0.4795138]
[1752821190129,1.11678628,120380.0,120370.0,0.78701262]
[1752821190642,1.34430628,120380.0,120370.0,0.78701262]
[1752821191140,0.75598628,120380.0,120370.0,0.78701262]
[1752821191336,1.30560445,120380.0,120370.0,0.78701262]
[1752821191536,1.30560445,120380.0,120370.0,0.78801262]
[1752821191839,1.30560445,120380.0,120370.0,0.4805138]
[1752821192040,1.30460445,120380.0,120370.0,0.78801262]
[1752821192340,1.30460445,120380.0,120370.0,0.78901262]
[1752821192341,1.30440445,120380.0,120370.0,0.78901262]
[1752821192542,1.42665445,120380.0,120370.0,0.78901262]
[1752821193037,1.42665445,120380.0,120370.0,0.83383043]
[1752821193237,1.42661445,120380.0,120370.0,0.83383043]
[1752821193540,1.42645445,120380.0,120370.0,0.83383043]
[1752821194242,1.42637445,120380.0,120370.0,0.83383043]
[1752821195143,1.42637445,120380.0,120370.0,0.52633161]
[1752821195540,1.42637445,120380.0,120370.0,0.83383043]
[1752821196945,1.42601445,120380.0,120370.0,0.83383043]
[1752821198148,1.28119445,120380.0,120370.0,0.78901262]
[1752821198946,1.30429445,120380.0,120370.0,0.78901262]
[1752821199146,1.42654445,120380.0,120370.0,0.78901262]
[1752821199347,0.83946445,120380.0,120370.0,0.78901262]
[1752821199647,1.42626445,120380.0,120370.0,0.78901262]
[1752821200947,1.26026455,120380.0,120370.0,0.78901262]
[1752821201148,0.67346455,120380.0,120370.0,0.78901262]
[1752821201348,1.11431455,120380.0,120370.0,0.78901262]
[1752821202046,1.11431455,120380.0,120370.0,0.4815138]
[1752821202248,1.11431455,120380.0,120370.0,0.78901262]
[1752821202647,0.17271573,120380.0,120370.0,0.78901262]
[1752821202846,0.17271573,120380.0,120370.0,1.79658058]
[1752821203149,0.17271573,120380.0,120370.0,1.20958058]
[1752821203343,0.48021455,120380.0,120370.0,1.20958058]
[1752821203548,0.48021455,120380.0,120370.0,1.48900176]
[1752821203749,0.52951455,120380.0,120370.0,1.79650058]
[1752821204144,0.69551485,120380.0,120370.0,1.79650058]
[1752821204352,0.84110485,120380.0,120370.0,1.79650058]
[1752821205052,0.67510455,120380.0,120370.0,1.79650058]
[1752821205246,0.71885485,120380.0,120370.0,1.79650058]
[1752821205448,0.55285455,120380.0,120370.0,1.79650058]
[1752821205853,0.52951455,120380.0,120370.0,1.79650058]
[1752821208455,0.22201573,120380.0,120370.0,1.79650058]
[1752821208646,0.48021455,120380.0,120370.0,1.73653262]
[1752821208953,0.48021455,120380.0,120370.0,1.79626058]
[1752821209358,0.48021455,120380.0,120370.0,1.48876176]
[1752821209558,0.48021455,120380.0,120370.0,1.79626058]
[1752821210758,0.17271573,120380.0,120370.0,1.48876176]
[1752821210958,0.17271573,120380.0,120370.0,1.79626058]
[1752821211255,0.08964842,120380.0,120370.0,1.63012596]
[1752821211455,0.61499604,120380.0,120370.0,1.67813058]
[1752821211752,0.0196526,120380.0,120370.0,1.67813058]
[1752821211956,1.25053582,120390.0,120380.0,0.2726703]
[1752821212158,1.37736582,120390.0,120380.0,0.03582837]
[1752821212359,1.29429851,120390.0,120380.0,0.35090867]
[1752821212561,1.29459288,120390.0,120380.0,0.35090867]
[1752821213349,1.29559288,120390.0,120380.0,0.46887867]
[1752821214661,0.90502675,120390.0,120380.0,0.46887867]
[1752821214861,1.21252557,120390.0,120380.0,0.46887867]
[1752821216264,1.21252557,120390.0,120380.0,0.51368306]
[1752821216661,1.21252557,120390.0,120380.0,0.51368269]
[1752821217564,1.21252557,120390.0,120380.0,0.82118151]
[1752821217766,1.21252557,120390.0,120380.0,0.77637749]
[1752821218268,1.21252557,120390.0,120380.0,0.46887867]
[1752821218663,0.90502675,120390.0,120380.0,0.46887867]
[1752821218864,0.90502675,120390.0,120380.0,0.77637749]
[1752821219164,1.04653857,120390.0,120380.0,0.77637749]
[1752821219466,0.55733319,120390.0,120380.0,0.77637749]
[1752821219666,0.83535437,120390.0,120380.0,0.77637749]
[1752821219867,0.70129437,120390.0,120380.0,1.40677912]
[1752821220168,0.04505964,120390.0,120380.0,0.53509409]
[1752821220366,0.09014491,120390.0,120380.0,1.28669439]
[1752821220562,0.02778527,120390.0,120380.0,1.69639439]
[1752821220761,0.34026376,120390.0,120380.0,1.44720019]
[1752821220968,0.54480376,120390.0,120380.0,1.51240912]
[1752821221268,0.30726655,120390.0,120380.0,1.63037912]
[1752821221566,0.22420428,120390.0,120380.0,1.61801912]
[1752821221865,0.14114201,120390.0,120380.0,1.07369349]
[1752821222066,0.044,120390.0,120380.0,1.09845349]
[1752821222265,0.26843655,120390.0,120380.0,1.79628384]
[1752821222463,0.26843655,120390.0,120380.0,1.48113231]
[1752821222661,0.18537428,120390.0,120380.0,1.48113231]
[1752821222962,1.54535972,120400.0,120390.0,0.1659865]
[1752821223162,1.54535972,120400.0,120390.0,0.80991152]
[1752821223372,1.61365972,120400.0,120390.0,0.80991152]
[1752821223668,1.57216602,120400.0,120390.0,0.80991152]
[1752821224170,1.2666672,120400.0,120390.0,0.80991152]
[1752821224367,1.11663602,120400.0,120390.0,0.80991152]
[1752821224570,1.71276602,120400.0,120390.0,0.85881152]
[1752821225470,1.71276602,120400.0,120390.0,0.5513127]
[1752821225669,1.4052672,120400.0,120390.0,0.5513127]
[1752821225871,1.71276602,120400.0,120390.0,0.85881152]
[1752821226172,1.4052672,120400.0,120390.0,0.85881152]
[1752821226371,1.71276602,120400.0,120390.0,0.85881152]
[1752821227165,0.00082301,120400.0,120390.0,1.49724386]
[1752821227365,0.01243,120420.0,120410.0,0.476619]
[1752821227562,0.6826242,120430.0,120420.0,0.4766052]
[1752821227765,0.4752,120430.0,120420.0,0.82889288]
[1752821227962,0.59987488,120430.0,120420.0,1.1363917]
[1752821228165,1.7701351,120430.0,120420.0,0.52139406]
[1752821228370,1.7701351,120430.0,120420.0,0.82889288]
[1752821228564,1.7701351,120430.0,120420.0,0.858726]
[1752821228766,1.1843351,120430.0,120420.0,0.858726]
[1752821228960,1.7703751,120430.0,120420.0,0.858726]
[1752821229166,0.87683628,120430.0,120420.0,0.858726]
[1752821229374,0.93610488,120430.0,120420.0,0.81393714]
[1752821229674,0.35010488,120430.0,120420.0,0.858726]
[1752821229874,0.84986402,120430.0,120420.0,0.66277387]
[1752821230071,1.0922442,120430.0,120420.0,0.77690957]
[1752821230371,1.1845566,120430.0,120420.0,0.80670935]
[1752821230669,1.22821515,120430.0,120420.0,0.80670935]
[1752821230874,0.95786493,120430.0,120420.0,0.64531084]
[1752821231175,0.79174593,120430.0,120420.0,0.33781202]
[1752821231476,1.06948643,120430.0,120420.0,0.61085914]
[1752821231774,0.70003855,120430.0,120420.0,0.5360126]
[1752821231969,0.69980905,120430.0,120420.0,0.5360126]
[1752821232166,0.81425175,120430.0,120420.0,0.26296548]
[1752821232372,0.82668175,120430.0,120410.0,1.11816275]
[1752821232573,0.84047831,120430.0,120420.0,0.2849752]
[1752821232880,0.25147561,120430.0,120420.0,0.4277052]
[1752821233073,0.21375888,120430.0,120420.0,0.70075232]
[1752821233274,0.21375888,120430.0,120420.0,0.52706213]
[1752821233475,0.04160888,120430.0,120420.0,1.64164733]
[1752821233674,0.04532,120450.0,120440.0,0.4276785]
[1752821233872,0.6219539,120460.0,120450.0,0.2849347]
[1752821234072,0.8810039,120460.0,120450.0,0.22745451]
[1752821234274,1.28369713,120460.0,120450.0,0.43696921]
[1752821234573,1.3665526,120460.0,120450.0,0.43696921]
[1752821234878,1.4948226,120460.0,120450.0,0.43696921]
[1752821235274,1.50315441,120460.0,120450.0,0.43696921]
[1752821235572,1.50319441,120460.0,120450.0,0.43696921]
[1752821235777,1.4948626,120460.0,120450.0,0.43696921]
[1752821235980,1.5401826,120460.0,120450.0,0.43696921]
[1752821236674,1.4355326,120460.0,120450.0,0.43696921]
[1752821236875,0.4864126,120460.0,120450.0,0.43696921]
[1752821237079,0.99205587,120460.0,120450.0,0.43696921]
[1752821237377,1.14895587,120460.0,120450.0,0.26327902]
[1752821237578,1.06591914,120460.0,120450.0,0.26327902]
[1752821237878,1.02688121,120460.0,120450.0,0.62407902]
[1752821238080,0.94384448,120460.0,120450.0,0.80471268]
[1752821238279,1.06920183,120460.0,120450.0,0.93119065]
[1752821238480,0.9861651,120460.0,120450.0,0.93119065]
[1752821238677,0.90312837,120460.0,120450.0,0.93119065]
[1752821238979,0.82009164,120460.0,120450.0,0.47318509]
[1752821239278,0.37368735,120460.0,120450.0,0.67609509]
[1752821239477,0.079,120460.0,120450.0,1.03689509]
[1752821239678,0.65377157,120470.0,120460.0,0.4604215]
[1752821239978,0.81120388,120470.0,120460.0,0.7542569]
[1752821240174,0.75086281,120470.0,120460.0,0.7542569]
[1752821240380,0.83373164,120470.0,120460.0,0.7542569]
[1752821240579,0.83373164,120470.0,120460.0,0.58823475]
[1752821240580,0.47710161,120470.0,120460.0,0.58823475]
[1752821240780,0.64907161,120470.0,120460.0,0.54754368]
[1752821240982,0.60752994,120470.0,120460.0,0.54754368]
[1752821241181,0.43945957,120470.0,120460.0,0.90834368]
[1752821241374,0.5223261,120470.0,120460.0,0.8749415]
[1752821241582,0.5242649,120480.0,120470.0,0.2872876]
[1752821241782,1.02877383,120480.0,120470.0,0.73345472]
[1752821241982,0.48338269,120480.0,120470.0,0.4604076]
[1752821242182,0.40037162,120480.0,120470.0,0.29438545]
[1752821242383,0.40037162,120480.0,120470.0,0.40816198]
[1752821242683,0.83823493,120480.0,120470.0,0.40816198]
[1752821242883,0.83823493,120480.0,120470.0,0.99584198]
[1752821243086,0.47743493,120480.0,120470.0,0.40816198]
[1752821243286,0.47743493,120480.0,120470.0,0.43300198]
[1752821243984,0.52486493,120480.0,120470.0,0.43300198]
[1752821244185,0.64940493,120480.0,120470.0,0.43300198]
[1752821244381,1.01020493,120480.0,120470.0,0.43300198]
[1752821245088,1.28325205,120480.0,120470.0,0.43300198]
[1752821245589,1.01020493,120480.0,120470.0,0.43300198]
[1752821247287,1.59788493,120480.0,120470.0,0.43300198]
[1752821247789,1.23708493,120480.0,120470.0,0.43300198]
[1752821249088,1.59788493,120480.0,120470.0,0.43300198]
[1752821249790,1.01020493,120480.0,120470.0,0.43300198]
[1752821250392,0.64940493,120480.0,120470.0,0.43300198]
[1752821256488,0.64940493,120480.0,120470.0,0.45532833]
[1752821258386,1.01020493,120480.0,120470.0,0.45532833]
[1752821258996,1.31716767,120480.0,120470.0,0.76229107]
[1752821259994,0.95636767,120480.0,120470.0,0.76229107]
[1752821260296,0.64940493,120480.0,120470.0,0.45532833]
[1752821260495,1.31716767,120480.0,120470.0,0.76229107]
[1752821261596,1.31716767,120480.0,120470.0,0.79207517]
[1752821262091,0.95636767,120480.0,120470.0,0.79207517]
[1752821262396,0.95636767,120480.0,120470.0,0.76974882]
[1752821262987,0.524265,120480.0,120470.0,0.76974882]
[1752821263185,0.83122774,120480.0,120470.0,0.76974882]
[1752821263387,0.83122774,120480.0,120470.0,0.81422808]
[1752821265397,0.83122774,120480.0,120470.0,0.78444398]
[1752821265593,0.524265,120480.0,120470.0,0.78444398]
[1752821265897,0.83122774,120480.0,120470.0,0.47748124]
[1752821266090,0.83122774,120480.0,120470.0,0.78444398]
[1752821266289,0.83122774,120480.0,120470.0,0.81426671]
[1752821266490,0.83122774,120480.0,120470.0,0.78444398]
[1752821266998,0.83122774,120480.0,120470.0,1.36912398]
[1752821269603,0.524265,120480.0,120470.0,1.36912398]
[1752821269803,0.83122774,120480.0,120470.0,1.36912398]
[1752821270203,0.83122774,120480.0,120470.0,1.06216124]
[1752821270406,0.524265,120480.0,120470.0,1.36912398]
[1752821270601,0.83122774,120480.0,120470.0,1.36912398]
[1752821271301,0.524265,120480.0,120470.0,1.36912398]
[1752821271507,0.4827948,120480.0,120470.0,1.36912398]
[1752821271702,0.78975754,120480.0,120470.0,1.36912398]
[1752821272006,0.78975754,120480.0,120470.0,1.06216124]
[1752821272198,0.78975754,120480.0,120470.0,1.36912398]
[1752821273506,0.4827948,120480.0,120470.0,1.36912398]
[1752821273706,0.78975754,120480.0,120470.0,1.36912398]
[1752821274207,0.78975754,120480.0,120470.0,1.06216124]
[1752821274408,0.78975754,120480.0,120470.0,1.36912398]
[1752821278701,0.4827948,120480.0,120470.0,1.36912398]
[1752821278907,0.78975754,120480.0,120470.0,1.36912398]
[1752821281411,0.78975754,120480.0,120470.0,1.36764398]
[1752821281609,0.78975754,120480.0,120470.0,1.06068124]
[1752821281811,0.78975754,120480.0,120470.0,1.36764398]
[1752821282105,0.4827948,120480.0,120470.0,1.36764398]
[1752821282312,0.4827948,120480.0,120470.0,1.36760398]
[1752821282505,0.4827948,120480.0,120470.0,0.78444398]
[1752821282707,0.78975754,120480.0,120470.0,1.36780398]
[1752821283109,0.78975754,120480.0,120470.0,1.06084124]
[1752821283310,0.78975754,120480.0,120470.0,1.36780398]
[1752821284408,0.78975754,120480.0,120470.0,0.47748124]
[1752821284612,0.78975754,120480.0,120470.0,1.36796398]
[1752821284813,0.78975754,120480.0,120470.0,0.47748124]
[1752821285012,0.78975754,120480.0,120470.0,1.36796398]
[1752821285313,0.4827948,120480.0,120470.0,1.36796398]
[1752821285614,0.78975754,120480.0,120470.0,1.36796398]
[1752821285812,0.78975754,120480.0,120470.0,1.06100124]
[1752821286113,0.78975754,120480.0,120470.0,1.36796398]
[1752821286614,0.4827948,120480.0,120470.0,1.36796398]
[1752821286816,0.78975754,120480.0,120470.0,1.36796398]
[1752821287316,0.4827948,120480.0,120470.0,1.36796398]
[1752821287517,0.78975754,120480.0,120470.0,1.36796398]
[1752821287713,0.31693,120480.0,120470.0,0.78444398]
[1752821288012,0.4827948,120480.0,120470.0,1.36852398]
[1752821288210,0.31693,120480.0,120470.0,1.06156124]
[1752821288407,0.31693,120480.0,120470.0,1.36852398]
[1752821289814,0.31693,120480.0,120470.0,1.06156124]
[1752821290015,0.31693,120480.0,120470.0,1.36852398]
[1752821291108,0.31693,120480.0,120470.0,0.78444398]
[1752821291312,0.31693,120480.0,120470.0,1.36864398]
[1752821291513,0.31693,120480.0,120470.0,0.78444398]
[1752821291817,0.31693,120480.0,120470.0,1.36872398]
[1752821292418,0.31693,120480.0,120470.0,1.06176124]
[1752821292614,0.31693,120480.0,120470.0,1.32424472]
[1752821293318,0.2695,120480.0,120470.0,1.32424472]
[1752821293517,0.2695,120480.0,120470.0,0.73996472]
[1752821293719,0.2695,120480.0,120470.0,1.32424472]
[1752821294120,0.4353647,120480.0,120470.0,1.32424472]
[1752821294816,0.4353647,120480.0,120470.0,0.73996472]
[1752821295021,0.4353647,120480.0,120470.0,1.32416472]
[1752821295322,0.4804847,120480.0,120470.0,1.32416472]
[1752821295524,0.4804847,120480.0,120470.0,1.38393268]
[1752821297324,0.4804847,120480.0,120470.0,1.07696994]
[1752821297622,0.4804847,120480.0,120470.0,1.38393268]
[1752821300326,0.4804847,120480.0,120470.0,1.07696994]
[1752821300526,0.4804847,120480.0,120470.0,1.38393268]
[1752821301224,0.4804847,120480.0,120470.0,1.32416472]
[1752821304628,0.31462,120480.0,120470.0,1.32416472]
[1752821304926,0.4353634,120480.0,120470.0,1.32416472]
[1752821305121,0.2695,120480.0,120470.0,0.73996472]
[1752821305322,0.2695,120480.0,120470.0,1.01616198]
[1752821305517,0.435364,120480.0,120470.0,1.32312472]
[1752821306327,0.2695,120480.0,120470.0,1.32312472]
[1752821307026,0.435364,120480.0,120470.0,1.32312472]
[1752821308326,0.2695,120480.0,120470.0,1.32312472]
[1752821308824,0.2695,120480.0,120470.0,1.32308472]
[1752821309628,0.435364,120480.0,120470.0,1.32308472]
[1752821310528,0.435364,120480.0,120470.0,1.68388472]
[1752821310722,0.03449,120480.0,120470.0,0.73996472]
[1752821310929,0.1658614,120490.0,120480.0,0.4786533]
[1752821311229,0.1658614,120490.0,120480.0,1.13736861]
[1752821311729,0.1658614,120490.0,120480.0,1.72048861]
[1752821312227,0.1899614,120490.0,120480.0,1.72048861]
[1752821312428,0.2658714,120490.0,120480.0,0.52344313]
[1752821312629,0.2779814,120490.0,120480.0,1.41352587]
[1752821313433,0.2779814,120490.0,120480.0,0.83040587]
[1752821313933,0.2779814,120490.0,120480.0,1.41352587]
[1752821314633,0.2779814,120490.0,120480.0,1.11485093]
[1752821314930,0.2779814,120490.0,120480.0,0.83869367]
[1752821315132,0.2779814,120490.0,120480.0,1.42177367]
[1752821315728,0.2779814,120490.0,120480.0,1.72873641]
[1752821316035,0.1779714,120490.0,120480.0,1.72873641]
[1752821317829,0.01211,120490.0,120480.0,1.11481093]
[1752821318025,1.22682044,120500.0,120490.0,0.2908304]
[1752821318225,1.22682044,120500.0,120490.0,0.81536972]
[1752821319734,1.22682044,120500.0,120490.0,0.86015955]
[1752821321238,1.22682044,120500.0,120490.0,1.44319955]
[1752821321637,1.22682044,120500.0,120490.0,1.13623681]
[1752821321838,1.35164828,120500.0,120490.0,0.02985993]
[1752821322039,1.04468554,120500.0,120490.0,0.81546287]
[1752821322239,1.93468828,120500.0,120490.0,0.81546287]
[1752821322641,1.62772554,120500.0,120490.0,0.8602527]
[1752821322841,1.35164828,120500.0,120490.0,0.55328996]
[1752821323037,1.35164828,120500.0,120490.0,0.52919996]
[1752821323334,1.93468828,120500.0,120490.0,0.52919996]
[1752821324131,1.62772554,120500.0,120490.0,0.51787996]
[1752821324334,1.93468828,120500.0,120490.0,0.51787996]
[1752821325642,1.93468828,120500.0,120490.0,0.32064996]
[1752821325841,1.93468828,120500.0,120490.0,0.28861996]
[1752821327042,1.93468828,120500.0,120490.0,0.39146013]
[1752821327237,1.93468828,120500.0,120490.0,0.47309013]
[1752821327442,1.62772554,120500.0,120490.0,0.47309013]
[1752821327638,1.93468828,120500.0,120490.0,0.47309013]
[1752821327939,1.93468828,120500.0,120490.0,0.48441013]
[1752821331948,1.93464828,120500.0,120490.0,0.48441013]
[1752821332445,1.04468554,120500.0,120490.0,0.48441013]
[1752821332645,1.93464828,120500.0,120490.0,0.50695013]
[1752821333441,1.93464828,120500.0,120490.0,0.81391287]
[1752821333641,1.93464828,120500.0,120490.0,0.50695013]
[1752821335547,1.35164828,120500.0,120490.0,0.50695013]
[1752821335750,1.93460828,120500.0,120490.0,0.50695013]
[1752821336847,1.93460828,120500.0,120490.0,0.52934731]
[1752821337643,1.93460828,120500.0,120490.0,0.50695013]
[1752821338044,1.35164828,120500.0,120490.0,0.50695013]
[1752821338242,1.93460828,120500.0,120490.0,0.50695013]
[1752821338650,1.93460828,120500.0,120490.0,0.81391287]